bitfinex/quotes_BTCUSD_20250813
["timestamp","ask_amount","ask_price","bid_price","bid_amount"]
[1755119058735,1.10013691,122730.0,122720.0,0.31992]
[1755119058918,1.22446267,122730.0,122720.0,0.31992]
[1755119059129,1.22446267,122730.0,122720.0,0.351912]
[1755119060085,1.22446267,122730.0,122720.0,0.31992]
[1755119060495,1.06150333,122730.0,122720.0,0.31992]
[1755119060952,0.93717757,122730.0,122720.0,0.31992]
[1755119061198,1.06150333,122730.0,122720.0,0.31992]
[1755119062265,1.03706233,122730.0,122720.0,0.32203]
[1755119063066,1.03491233,122730.0,122720.0,0.354233]
[1755119063606,1.03491233,122730.0,122720.0,0.32203]
[1755119065510,1.03188233,122730.0,122720.0,0.32203]
[1755119066135,1.01662691,122730.0,122720.0,0.32203]
[1755119066357,1.03187397,122730.0,122720.0,0.32203]
[1755119066557,1.0123828,122730.0,122720.0,0.32203]
[1755119066971,0.54904901,122730.0,122720.0,0.32203]
[1755119067189,0.54904901,122730.0,122720.0,0.354396]
[1755119067392,0.54804901,122730.0,122720.0,0.354396]
[1755119067625,0.54804901,122730.0,122720.0,0.32203]
[1755119067751,0.99393378,122730.0,122720.0,0.32203]
[1755119068179,0.99293378,122730.0,122720.0,0.32203]
[1755119068900,0.99792378,122730.0,122720.0,0.32203]
[1755119069449,0.99792378,122730.0,122720.0,0.31992]
[1755119069594,1.0153728,122730.0,122720.0,0.31992]
[1755119070274,1.03061851,122730.0,122720.0,0.31992]
[1755119071277,1.0153728,122730.0,122720.0,0.31992]
[1755119073801,1.17833214,122730.0,122720.0,0.31992]
[1755119074009,1.19357509,122730.0,122720.0,0.31992]
[1755119074164,1.27541033,122730.0,122720.0,0.19544]
[1755119074359,1.19357509,122730.0,122720.0,0.31992]
[1755119074995,1.03061575,122730.0,122720.0,0.31992]
[1755119082051,1.03061575,122730.0,122720.0,0.19544]
[1755119082188,1.03061575,122730.0,122720.0,0.31992]
[1755119084073,1.63945986,122730.0,122720.0,0.19544]
[1755119084286,1.72618855,122730.0,122720.0,0.31992]
[1755119084497,1.75062855,122730.0,122720.0,0.31992]
[1755119085128,1.66814412,122730.0,122720.0,0.31992]
[1755119085347,1.67114412,122730.0,122720.0,0.31992]
[1755119086217,1.67114412,122730.0,122720.0,0.19544]
[1755119086421,1.69614412,122730.0,122720.0,0.19544]
[1755119086628,1.69614412,122730.0,122720.0,0.31992]
[1755119086836,1.74717585,122730.0,122720.0,0.31992]
[1755119087432,1.75017585,122730.0,122720.0,0.31992]
[1755119087630,1.69914412,122730.0,122720.0,0.31992]
[1755119088193,1.25325935,122730.0,122720.0,0.31992]
[1755119088397,1.04286099,122730.0,122720.0,0.32208]
[1755119088658,1.18138033,122730.0,122720.0,0.32208]
[1755119088820,1.18637033,122730.0,122720.0,0.32208]
[1755119089001,1.02341099,122730.0,122720.0,0.354288]
[1755119089593,1.04086001,122730.0,122720.0,0.31992]
[1755119089808,1.03786001,122730.0,122720.0,0.31992]
[1755119090247,1.03686001,122730.0,122720.0,0.31992]
[1755119090441,1.03486001,122730.0,122720.0,0.31992]
[1755119090622,1.03886001,122730.0,122720.0,0.31992]
[1755119091044,1.03686001,122730.0,122720.0,0.31992]
[1755119091251,1.03684981,122730.0,122720.0,0.31992]
[1755119091447,1.03884981,122730.0,122720.0,0.31992]
[1755119091962,1.20180915,122730.0,122720.0,0.31992]
[1755119092406,1.75461535,122730.0,122720.0,0.31992]
[1755119092605,1.67213092,122730.0,122720.0,0.31992]
[1755119093012,1.67213092,122730.0,122720.0,0.19544]
[1755119093453,1.67213092,122730.0,122720.0,0.31992]
[1755119094172,1.67213045,122730.0,122720.0,0.31992]
[1755119096658,1.76261488,122730.0,122720.0,0.19544]
[1755119096837,1.76261488,122730.0,122720.0,0.31992]
[1755119099937,0.87084534,122730.0,122720.0,0.31992]
[1755119100172,1.76261488,122730.0,122720.0,0.31992]
[1755119100633,1.68013045,122730.0,122720.0,0.31992]
[1755119101535,1.25832615,122730.0,122720.0,0.31992]
[1755119102496,0.81244138,122730.0,122720.0,0.31992]
[1755119102702,1.70421092,122730.0,122720.0,0.31992]
[1755119103799,1.25832615,122730.0,122720.0,0.31992]
[1755119104004,1.25333615,122730.0,122720.0,0.32194]
[1755119105348,1.07292843,122730.0,122720.0,0.32194]
[1755119105570,0.12432576,122710.0,122690.0,0.44588477]
[1755119105773,0.54704901,122710.0,122700.0,0.19544]
[1755119105981,0.54704901,122710.0,122700.0,0.26384448]
[1755119106688,0.54704901,122710.0,122700.0,0.38828448]
[1755119108351,0.54704901,122710.0,122700.0,0.38928448]
[1755119108529,0.20704901,122710.0,122700.0,0.38928448]
[1755119110165,0.12432576,122720.0,122700.0,0.83516925]
[1755119110396,0.54704901,122720.0,122700.0,0.83516925]
[1755119110882,0.54704901,122720.0,122700.0,0.38928448]
[1755119111121,0.54704901,122720.0,122700.0,0.38828448]
[1755119111552,0.52860802,122710.0,122700.0,0.38928448]
[1755119111782,0.52860802,122710.0,122700.0,0.32088]
[1755119113544,0.52860802,122710.0,122700.0,0.31988]
[1755119113756,0.53170802,122710.0,122700.0,0.32088]
[1755119114477,0.02868026,122730.0,122700.0,0.89220802]
[1755119114681,0.12432576,122750.0,122720.0,0.44588477]
[1755119114846,0.12444617,122750.0,122740.0,0.44588477]
[1755119115049,0.00012041,122750.0,122740.0,0.44588477]
[1755119115364,0.00012041,122750.0,122730.0,0.57032477]
[1755119116143,0.00012041,122750.0,122730.0,0.5942214]
[1755119116355,0.00012041,122750.0,122740.0,0.00407364]
[1755119117602,0.00012041,122750.0,122740.0,0.00507364]
[1755119118075,0.00012041,122750.0,122740.0,0.45095841]
[1755119118306,0.00012041,122750.0,122740.0,0.44688477]
[1755119119614,0.00012041,122750.0,122740.0,0.001]
[1755119120165,0.00322041,122750.0,122740.0,0.1254]
[1755119123400,0.00322041,122750.0,122740.0,0.18252848]
[1755119123697,0.00012041,122750.0,122740.0,0.62841325]
[1755119124083,0.00012041,122750.0,122740.0,0.18252848]
[1755119124310,0.00012041,122750.0,122740.0,0.1254]
[1755119124616,0.00012041,122750.0,122740.0,0.12947364]
[1755119125930,0.00337041,122750.0,122740.0,0.12947364]
[1755119127049,0.00337041,122750.0,122740.0,0.00507364]
[1755119127262,0.00337041,122750.0,122740.0,0.12947364]
[1755119127604,0.00337041,122750.0,122740.0,0.18700948]
[1755119127743,0.00337041,122750.0,122740.0,0.18293584]
[1755119127944,0.00337041,122750.0,122740.0,0.05853584]
[1755119128170,0.00337041,122750.0,122740.0,0.18700948]
[1755119128356,0.00337041,122750.0,122740.0,0.18293584]
[1755119128554,0.00337041,122750.0,122740.0,0.001]
[1755119128841,0.00337041,122750.0,122740.0,0.12947364]
[1755119129056,0.53401843,122750.0,122740.0,0.001]
[1755119129178,0.53401843,122750.0,122740.0,0.1254]
[1755119129571,0.53401843,122750.0,122740.0,0.32076]
[1755119130008,0.53401843,122750.0,122740.0,0.31976]
[1755119130394,0.53501843,122750.0,122740.0,0.19536]
[1755119130597,0.53501843,122750.0,122740.0,0.31976]
[1755119131038,0.08913366,122750.0,122740.0,0.31976]
[1755119131779,0.10430567,122750.0,122740.0,0.31976]
[1755119132208,0.55019044,122750.0,122740.0,0.31976]
[1755119135342,0.10430567,122750.0,122740.0,0.31976]
[1755119136565,0.55019044,122750.0,122740.0,0.31976]
[1755119137831,0.10430567,122750.0,122740.0,0.351736]
[1755119138624,0.10430567,122750.0,122740.0,0.31976]
[1755119143595,0.12432576,122740.0,122720.0,0.28423317]
[1755119143728,0.22547102,122740.0,122730.0,0.19536]
[1755119144771,0.22547102,122740.0,122730.0,0.31972]
[1755119145813,0.22554689,122740.0,122730.0,0.31972]
[1755119146220,0.67347166,122740.0,122730.0,0.19536]
[1755119146443,0.67347166,122740.0,122730.0,0.32072]
[1755119151084,0.22554689,122740.0,122730.0,0.32072]
[1755119151457,0.01524788,122740.0,122730.0,0.76660477]
[1755119152556,0.01524788,122740.0,122730.0,0.32072]
[1755119152771,0.01524788,122740.0,122730.0,0.76560477]
[1755119153212,0.01524788,122740.0,122730.0,0.76860477]
[1755119155802,0.01524788,122740.0,122730.0,0.32272]
[1755119156002,0.01524788,122740.0,122730.0,0.76860477]
[1755119158002,0.01524788,122740.0,122730.0,0.32272]
[1755119158201,0.01536829,122750.0,122730.0,0.80087677]
[1755119158412,0.01852829,122750.0,122730.0,0.80087677]
[1755119159089,0.01852829,122750.0,122740.0,0.00407364]
[1755119160032,0.02065829,122750.0,122730.0,0.353992]
[1755119160291,0.02065829,122750.0,122730.0,0.79887677]
[1755119160511,0.00316,122740.0,122730.0,0.352992]
[1755119160695,0.00529,122740.0,122730.0,0.352992]
[1755119161489,0.00529,122740.0,122730.0,0.353992]
[1755119161693,0.00529,122740.0,122730.0,0.32172]
[1755119161901,0.00529,122740.0,122730.0,0.32072]
[1755119162110,0.00529,122740.0,122730.0,0.32172]
[1755119162926,0.00529,122740.0,122730.0,0.32268]
[1755119170831,0.00316,122740.0,122730.0,0.32268]
[1755119171742,0.00316,122740.0,122730.0,0.3218633]
[1755119172110,0.00529,122740.0,122730.0,0.3218633]
[1755119172809,0.00316,122740.0,122730.0,0.3218633]
[1755119173606,0.00529,122740.0,122730.0,0.3218633]
[1755119174368,0.65822378,122740.0,122730.0,0.1975433]
[1755119174562,0.65822378,122740.0,122730.0,0.35173763]
[1755119174944,0.65822378,122740.0,122730.0,0.3218233]
[1755119175345,0.65822378,122740.0,122730.0,0.3208233]
[1755119175809,0.00012041,122750.0,122730.0,0.76552477]
[1755119176027,0.00012041,122750.0,122740.0,0.44588477]
[1755119177076,0.00012041,122750.0,122740.0,0.52860802]
[1755119177292,0.00012041,122750.0,122740.0,0.56981802]
[1755119177523,0.00012041,122750.0,122740.0,0.59424102]
[1755119177744,0.00012041,122750.0,122740.0,0.57424102]
[1755119178677,0.00012041,122750.0,122740.0,0.91624102]
[1755119178908,0.00012041,122750.0,122740.0,0.91824102]
[1755119179478,0.00012041,122750.0,122740.0,0.91624102]
[1755119179683,0.00012041,122750.0,122740.0,0.92024102]
[1755119180037,0.00012041,122750.0,122740.0,0.91824102]
[1755119181501,0.00012041,122750.0,122740.0,1.21516102]
[1755119181669,0.00012041,122750.0,122740.0,1.2607727]
[1755119181870,0.00012041,122750.0,122740.0,1.70665747]
[1755119182053,0.00012041,122750.0,122740.0,1.72264796]
[1755119182256,0.00012041,122750.0,122740.0,1.62493481]
[1755119182718,0.00012041,122750.0,122740.0,1.64693481]
[1755119182906,0.00012041,122750.0,122740.0,1.64293481]
[1755119183133,0.00012041,122750.0,122740.0,1.64597184]
[1755119183549,0.00012041,122750.0,122740.0,1.67097184]
[1755119183829,0.00012041,122750.0,122740.0,1.51986538]
[1755119184144,0.00012041,122750.0,122740.0,0.65210977]
[1755119184290,0.00012041,122750.0,122740.0,1.54387931]
[1755119184623,0.00012041,122750.0,122740.0,1.53987931]
[1755119184826,0.00012041,122750.0,122740.0,1.54187931]
[1755119185371,0.00012041,122750.0,122740.0,1.54387931]
[1755119185782,0.00012041,122750.0,122740.0,1.66863931]
[1755119186082,0.00012041,122750.0,122740.0,1.64986638]
[1755119186292,0.00012041,122750.0,122740.0,1.64786638]
[1755119186418,0.00012041,122750.0,122740.0,1.64886638]
[1755119187654,0.00012041,122750.0,122740.0,1.60778638]
[1755119188994,0.00012041,122750.0,122740.0,2.13218638]
[1755119189421,0.00012041,122750.0,122740.0,2.13214638]
[1755119190577,0.00012041,122750.0,122740.0,1.24037684]
[1755119190834,0.00012041,122750.0,122740.0,1.42634161]
[1755119191037,0.00012041,122750.0,122740.0,1.57558161]
[1755119191262,0.00012041,122750.0,122740.0,2.02146638]
[1755119191487,0.00012041,122750.0,122740.0,1.87242161]
[1755119191703,0.00526041,122750.0,122740.0,1.50732605]
[1755119191923,0.00324041,122750.0,122740.0,1.50732605]
[1755119192126,0.00324041,122750.0,122740.0,1.86477507]
[1755119192336,0.00012041,122750.0,122740.0,1.86477507]
[1755119192968,0.00526041,122750.0,122740.0,1.05852605]
[1755119193381,0.00526041,122750.0,122740.0,0.95264128]
[1755119193520,0.00526041,122750.0,122740.0,1.38852605]
[1755119193959,0.46578721,122790.0,122750.0,0.34]
[1755119194160,0.10270608,122790.0,122760.0,0.57008477]
[1755119194407,0.04125,122780.0,122770.0,0.1242]
[1755119194620,0.04327,122780.0,122770.0,0.18120848]
[1755119195006,0.04327,122780.0,122770.0,0.1242]
[1755119195210,0.12599325,122780.0,122770.0,0.1242]
[1755119195641,0.12599325,122780.0,122770.0,0.12827264]
[1755119196289,0.12911325,122780.0,122770.0,0.12827264]
[1755119197980,0.13311325,122780.0,122770.0,0.12827264]
[1755119198139,0.13311325,122780.0,122770.0,0.18568838]
[1755119198363,0.13311325,122780.0,122770.0,0.18161574]
[1755119199397,0.14826981,122780.0,122770.0,0.18161574]
[1755119199870,0.00914,122780.0,122770.0,0.62750051]
[1755119201135,0.00514,122780.0,122770.0,0.62750051]
[1755119201357,0.00814,122780.0,122770.0,0.62750051]
[1755119202385,0.02331421,122780.0,122770.0,0.62750051]
[1755119203395,0.02331421,122780.0,122770.0,0.18161574]
[1755119203601,0.02331421,122780.0,122770.0,0.57008477]
[1755119203839,0.02331421,122780.0,122770.0,0.1242]
[1755119204574,0.02331421,122780.0,122770.0,0.31948]
[1755119206413,0.10603746,122780.0,122770.0,0.31948]
[1755119207868,0.02331421,122780.0,122770.0,0.31948]
[1755119208005,0.02331421,122780.0,122770.0,0.76536477]
[1755119208418,0.02331421,122780.0,122770.0,0.31948]
[1755119208849,0.0233591,122780.0,122770.0,0.31948]
[1755119209055,0.0233591,122780.0,122770.0,0.32164]
[1755119209311,0.0182191,122780.0,122770.0,0.76752477]
[1755119209742,0.02213741,122780.0,122770.0,0.76752477]
[1755119210930,0.02213741,122780.0,122770.0,0.32164]
[1755119211258,0.02213741,122780.0,122770.0,0.76752477]
[1755119211478,0.02213741,122780.0,122770.0,0.32164]
[1755119212746,0.02213741,122780.0,122770.0,0.29684]
[1755119212966,0.02213741,122780.0,122770.0,0.79802794]
[1755119213559,0.01699741,122780.0,122770.0,0.79956794]
[1755119213798,0.00177831,122780.0,122770.0,0.82122452]
[1755119214020,0.00177831,122780.0,122770.0,0.35368317]
[1755119214247,0.00691831,122780.0,122770.0,0.35368317]
[1755119214465,0.00691831,122780.0,122770.0,0.47784317]
[1755119214692,0.00514,122780.0,122770.0,0.47784317]
[1755119214897,0.00614,122780.0,122770.0,0.47784317]
[1755119215326,0.00614,122780.0,122770.0,0.35214317]
[1755119215752,0.02136097,122780.0,122770.0,0.47630317]
[1755119218435,0.00614,122780.0,122770.0,0.47630317]
[1755119218637,0.02136926,122780.0,122770.0,0.47630317]
[1755119218836,0.02136926,122780.0,122770.0,0.421]
[1755119219302,0.10409251,122780.0,122770.0,0.421]
[1755119219507,0.54997728,122780.0,122770.0,0.421]
[1755119220333,0.88997728,122780.0,122770.0,0.29684]
[1755119220542,0.88997728,122780.0,122770.0,0.42156]
[1755119222050,0.88997728,122780.0,122770.0,0.463716]
[1755119222381,0.44409251,122780.0,122770.0,0.463716]
[1755119222819,0.09895251,122780.0,122770.0,0.465256]
[1755119223033,0.01622926,122780.0,122770.0,1.40134629]
[1755119223238,0.001,122780.0,122770.0,1.37727304]
[1755119223493,0.001,122780.0,122770.0,1.33482402]
[1755119225005,0.001,122780.0,122770.0,1.35966616]
[1755119225210,0.001,122780.0,122770.0,1.27555518]
[1755119225632,0.001,122780.0,122770.0,1.27571304]
[1755119225841,0.001,122780.0,122770.0,1.08043304]
[1755119226070,0.001,122780.0,122770.0,1.08368804]
[1755119226924,0.001,122780.0,122770.0,1.08468804]
[1755119227495,0.00484007,122790.0,122780.0,0.35744902]
[1755119227751,0.00484007,122790.0,122780.0,0.92659088]
[1755119227957,0.00060068,122790.0,122780.0,0.92659088]
[1755119228360,0.00060068,122790.0,122780.0,0.95100288]
[1755119229544,0.00060068,122790.0,122780.0,1.07576288]
[1755119230325,0.00060068,122790.0,122780.0,1.57164765]
[1755119231181,0.00483921,122790.0,122780.0,1.57164765]
[1755119231347,0.00483921,122790.0,122780.0,1.57264765]
[1755119231566,0.00483921,122790.0,122780.0,1.42456288]
[1755119231995,0.00483921,122790.0,122780.0,1.86944765]
[1755119232210,0.00483921,122790.0,122780.0,1.86844765]
[1755119232388,0.00483921,122790.0,122780.0,1.87244765]
[1755119232605,0.00483921,122790.0,122780.0,1.87644765]
[1755119232851,0.00483921,122790.0,122780.0,1.86844765]
[1755119233288,0.00483921,122790.0,122780.0,1.87144765]
[1755119234154,0.00483921,122790.0,122780.0,1.87344765]
[1755119234359,0.00483921,122790.0,122780.0,1.42756288]
[1755119234792,0.00483921,122790.0,122780.0,1.20128288]
[1755119234978,0.00483921,122790.0,122780.0,1.32684288]
[1755119235591,0.00483921,122790.0,122780.0,1.30184288]
[1755119235810,0.00483921,122790.0,122780.0,1.12760288]
[1755119236074,0.00483921,122790.0,122780.0,1.12856288]
[1755119236267,0.00483921,122790.0,122780.0,1.57444765]
[1755119236887,0.00483921,122790.0,122780.0,1.09215657]
[1755119237523,0.00483921,122790.0,122780.0,1.11715657]
[1755119237941,0.00060068,122790.0,122780.0,1.09315657]
[1755119238383,0.00060068,122790.0,122780.0,1.11815657]
[1755119239235,0.00060068,122790.0,122780.0,0.75927811]
[1755119239440,0.00060068,122790.0,122780.0,1.19375657]
[1755119240768,0.00060068,122790.0,122780.0,0.75927811]
[1755119241198,0.00060068,122790.0,122780.0,1.19375657]
[1755119241638,0.00060068,122790.0,122780.0,1.49051657]
[1755119242557,0.00060068,122790.0,122780.0,2.10220954]
[1755119242694,0.00060068,122790.0,122780.0,2.535688]
[1755119242894,0.00060068,122790.0,122780.0,2.436168]
[1755119243366,0.00060068,122790.0,122780.0,2.00168954]
[1755119243705,0.00060068,122790.0,122780.0,1.99968954]
[1755119243938,0.00060068,122790.0,122780.0,2.434168]
[1755119244200,0.00060068,122790.0,122780.0,2.435168]
[1755119244404,0.00060068,122790.0,122780.0,2.437168]
[1755119245133,0.00060068,122790.0,122780.0,2.434168]
[1755119245344,0.00060068,122790.0,122780.0,1.99768954]
[1755119245554,0.00060068,122790.0,122780.0,2.00368954]
[1755119246616,0.00060068,122790.0,122780.0,1.80844954]
[1755119247007,0.00060068,122790.0,122780.0,1.80444954]
[1755119247216,0.00060068,122790.0,122780.0,1.80944954]
[1755119247863,0.00060068,122790.0,122780.0,2.243928]
[1755119248069,0.00301,122820.0,122810.0,0.04244902]
[1755119248312,0.00503,122820.0,122810.0,1.10493495]
[1755119248901,0.00926806,122820.0,122810.0,1.12933895]
[1755119249557,0.00503,122820.0,122810.0,1.12933895]
[1755119250164,0.00503,122820.0,122810.0,1.15594755]
[1755119251016,0.00503,122820.0,122810.0,1.15748755]
[1755119251280,0.00301,122820.0,122810.0,0.72300909]
[1755119251472,0.00301,122820.0,122810.0,1.45416755]
[1755119251915,0.00301,122830.0,122820.0,0.38244902]
[1755119252119,0.00301,122830.0,122820.0,1.06614183]
[1755119252331,0.00503,122830.0,122820.0,1.06614183]
[1755119252985,0.00503,122830.0,122820.0,0.63166337]
[1755119253193,0.00503,122830.0,122820.0,1.06714183]
[1755119254233,0.00503,122830.0,122820.0,0.65106328]
[1755119254451,0.00503,122830.0,122820.0,1.08554174]
[1755119254675,0.0072473,122840.0,122820.0,1.08554174]
[1755119254886,0.0072473,122840.0,122830.0,1.00197073]
[1755119255140,0.0062573,122840.0,122830.0,1.04000457]
[1755119255372,0.0062573,122840.0,122830.0,0.47820611]
[1755119255569,0.0062573,122840.0,122830.0,1.03996457]
[1755119255779,0.0092673,122840.0,122830.0,1.03996457]
[1755119257287,0.0092673,122840.0,122830.0,1.06436457]
[1755119257730,0.0092673,122840.0,122830.0,1.06536457]
[1755119257950,0.00503,122840.0,122830.0,1.06536457]
[1755119258824,0.00503,122840.0,122830.0,1.07563341]
[1755119259850,0.00503,122840.0,122830.0,1.15003273]
[1755119260446,0.00503,122840.0,122830.0,0.70528543]
[1755119260763,0.00503,122840.0,122830.0,1.15003273]
[1755119260991,0.00503,122840.0,122830.0,1.15157273]
[1755119261174,0.00370356,122860.0,122840.0,0.38244902]
[1755119261522,0.01589026,122860.0,122850.0,0.95147055]
[1755119261748,0.01791026,122860.0,122850.0,0.95147055]
[1755119261960,0.02092026,122860.0,122850.0,0.50672325]
[1755119262168,0.02092026,122860.0,122850.0,0.95147055]
[1755119263304,0.02092026,122860.0,122850.0,0.50772325]
[1755119263518,0.02092026,122860.0,122850.0,0.99050439]
[1755119264733,0.0002,122870.0,122860.0,0.34]
[1755119264867,0.00236797,122870.0,122860.0,0.36319574]
[1755119265270,0.00236797,122870.0,122860.0,0.80794304]
[1755119265885,0.00034797,122870.0,122860.0,0.91135531]
[1755119266760,0.00034797,122870.0,122860.0,1.04035531]
[1755119267053,0.00034797,122870.0,122860.0,1.04135531]
[1755119267267,0.00034797,122870.0,122860.0,0.59660801]
[1755119267467,0.00034797,122870.0,122860.0,1.04135531]
[1755119267894,0.00034797,122870.0,122860.0,0.59660801]
[1755119268115,0.00034797,122870.0,122860.0,1.04135531]
[1755119268554,0.00034797,122870.0,122860.0,0.59660801]
[1755119268764,0.00034797,122870.0,122860.0,1.11575463]
[1755119269406,0.00034797,122870.0,122860.0,0.67100733]
[1755119269607,0.00034797,122870.0,122860.0,1.11575463]
[1755119269752,0.00034797,122870.0,122860.0,0.67100733]
[1755119269965,0.00034797,122870.0,122860.0,1.11575463]
[1755119271398,0.00236797,122870.0,122860.0,1.11251463]
[1755119271611,0.00034797,122870.0,122860.0,0.94691831]
[1755119271824,0.00034797,122870.0,122860.0,0.95015831]
[1755119271927,0.00034797,122870.0,122860.0,1.39490561]
[1755119272768,0.00034797,122870.0,122860.0,1.32050629]
[1755119273193,0.00034797,122870.0,122860.0,0.77427899]
[1755119273612,0.00034797,122870.0,122860.0,1.21902629]
[1755119274035,0.00034797,122870.0,122860.0,0.77427899]
[1755119274491,0.00034797,122870.0,122860.0,1.21902629]
[1755119274902,0.00034797,122870.0,122860.0,1.02390629]
[1755119275313,0.00034797,122870.0,122860.0,0.57915899]
[1755119275731,0.00034797,122870.0,122860.0,1.04890629]
[1755119276213,0.00034797,122870.0,122860.0,0.60415899]
[1755119276420,0.00034797,122870.0,122860.0,1.04890629]
[1755119276627,0.00034797,122870.0,122860.0,0.60415899]
[1755119277076,0.00559797,122870.0,122860.0,0.57555899]
[1755119277286,0.45034527,122870.0,122860.0,0.57555899]
[1755119277488,0.45034527,122870.0,122860.0,0.44495899]
[1755119277738,0.45034527,122870.0,122860.0,0.57555899]
[1755119278220,0.02077344,122870.0,122860.0,0.57555899]
[1755119278397,0.46552074,122870.0,122860.0,0.57555899]
[1755119278646,0.02077344,122870.0,122860.0,0.57555899]
[1755119278851,0.46552074,122870.0,122860.0,0.57555899]
[1755119279068,0.02077344,122870.0,122860.0,0.57555899]
[1755119279683,0.46552074,122870.0,122860.0,0.57555899]
[1755119279894,0.46552074,122870.0,122860.0,0.57559899]
[1755119280294,0.02077344,122870.0,122860.0,0.57559899]
[1755119280728,0.45034527,122870.0,122860.0,0.57559899]
[1755119280937,0.00559797,122870.0,122860.0,0.57559899]
[1755119281141,0.45034527,122870.0,122860.0,0.57559899]
[1755119281565,0.00559797,122870.0,122860.0,0.77071899]
[1755119281862,0.45034527,122870.0,122860.0,0.77071899]
[1755119282111,0.00559797,122870.0,122860.0,0.77071899]
[1755119282302,0.45034527,122870.0,122860.0,0.77071899]
[1755119282560,0.00559797,122870.0,122860.0,0.43071899]
[1755119282786,0.00034797,122870.0,122860.0,0.43279899]
[1755119283041,0.49100527,122870.0,122860.0,0.25579899]
[1755119283250,0.49100527,122870.0,122860.0,0.19512]
[1755119283251,0.06145352,122870.0,122860.0,0.19512]
[1755119283480,0.91028812,122870.0,122860.0,0.19512]
[1755119283705,0.02079352,122870.0,122860.0,0.19512]
[1755119283932,0.02079352,122870.0,122860.0,0.214632]
[1755119284118,0.03824254,122870.0,122860.0,0.214632]
[1755119284570,0.36497457,122860.0,122820.0,0.10324]
[1755119284788,0.0032,122850.0,122830.0,0.15281096]
[1755119284990,0.00205,122840.0,122830.0,0.15281096]
[1755119285203,0.4467973,122840.0,122830.0,0.08272325]
[1755119285417,0.00205,122840.0,122830.0,0.08480325]
[1755119285681,0.00205,122840.0,122830.0,0.22568325]
[1755119285916,0.0032,122850.0,122830.0,0.22568325]
[1755119286133,0.4447473,122840.0,122830.0,0.22892325]
[1755119286354,0.02817457,122860.0,122830.0,0.22892325]
[1755119286577,0.02497457,122860.0,122840.0,0.00731032]
[1755119286799,0.4696793,122860.0,122850.0,0.08480325]
[1755119287019,0.44470473,122880.0,122850.0,0.10323479]
[1755119287260,0.44470473,122860.0,122850.0,0.10014276]
[1755119287476,1.93284826,122900.0,122860.0,0.00324]
[1755119287692,0.44470473,122880.0,122860.0,0.01843154]
[1755119287911,0.44470473,122880.0,122860.0,0.02765769]
[1755119288137,0.0032,122890.0,122870.0,1e-08]
[1755119288356,0.0032,122890.0,122870.0,0.05111069]
[1755119288357,0.00205,122890.0,122870.0,0.05111069]
[1755119288575,0.00205,122890.0,122870.0,1e-08]
[1755119288791,1.93284826,122900.0,122880.0,0.08480325]
[1755119289008,1.92603715,122900.0,122880.0,0.0621636]
[1755119289226,2.37074188,122900.0,122890.0,0.06227017]
[1755119289482,0.00205,122890.0,122850.0,0.00014797]
[1755119289717,1.92603715,122900.0,122830.0,0.40684771]
[1755119289936,1.92603715,122900.0,122850.0,0.44547652]
[1755119290153,2.34954188,122900.0,122860.0,0.08679291]
[1755119290368,1.90483715,122900.0,122860.0,0.12308325]
[1755119290593,0.44470473,122890.0,122870.0,0.14376]
[1755119290818,1.90163715,122900.0,122880.0,0.004069]
[1755119291259,1.90163715,122900.0,122890.0,0.08272325]
[1755119291697,2.34634188,122900.0,122890.0,0.37928325]
[1755119291923,2.35159188,122900.0,122890.0,0.29656]
[1755119292102,1.90688715,122900.0,122890.0,0.441]
[1755119292358,2.35159188,122900.0,122890.0,0.441]
[1755119292578,2.35159188,122900.0,122890.0,0.29656]
[1755119292779,2.79640363,122900.0,122890.0,0.19512]
[1755119292998,2.79640452,122900.0,122890.0,0.33964]
[1755119293490,2.36223122,122900.0,122890.0,0.33964]
[1755119293705,2.36223122,122900.0,122890.0,0.34064]
[1755119293928,2.79640452,122900.0,122890.0,0.34064]
[1755119294116,2.36223122,122900.0,122890.0,0.33964]
[1755119294361,2.79640452,122900.0,122890.0,0.33964]
[1755119294804,2.79640452,122900.0,122890.0,0.3396]
[1755119295026,2.36223122,122900.0,122890.0,0.33964]
[1755119295241,2.79840452,122900.0,122890.0,0.33964]
[1755119295460,0.35744902,122890.0,122850.0,0.024392]
[1755119295670,0.35744902,122850.0,122830.0,0.06734127]
[1755119295887,0.79482232,122840.0,122830.0,0.00049356]
[1755119296100,0.79482232,122840.0,122830.0,0.34021356]
[1755119296101,0.44337227,122840.0,122830.0,0.34021356]
[1755119296317,0.87754557,122840.0,122830.0,0.34021356]
[1755119296775,0.025,122820.0,122790.0,0.024405]
[1755119297054,1.22579562,122800.0,122790.0,0.00014797]
[1755119297263,1.22579562,122800.0,122740.0,0.024413]
[1755119297264,0.01744902,122770.0,122740.0,0.024413]
[1755119297495,0.45162232,122750.0,122740.0,0.00955061]
[1755119297715,0.01744902,122750.0,122740.0,0.15523061]
[1755119297916,0.03474822,122750.0,122740.0,0.15523061]
[1755119298127,0.97336905,122750.0,122730.0,8.039e-05]
[1755119298344,0.86009655,122740.0,122730.0,8.039e-05]
[1755119298561,0.87919575,122740.0,122730.0,0.14604039]
[1755119298774,0.86009655,122740.0,122730.0,0.14604039]
[1755119299224,0.85909655,122740.0,122730.0,8.039e-05]
[1755119299446,0.85909655,122740.0,122730.0,0.14604039]
[1755119299447,0.87419957,122740.0,122730.0,0.14604039]
[1755119299670,0.01830302,122740.0,122730.0,0.14604039]
[1755119299916,0.01930302,122740.0,122730.0,0.14604039]
[1755119300151,0.01744902,122750.0,122730.0,0.14604039]
[1755119300366,0.46670307,122750.0,122730.0,0.14604039]
[1755119300579,0.46670307,122750.0,122740.0,0.00407364]
[1755119300580,0.03572977,122750.0,122740.0,0.00407364]
[1755119300812,0.03572977,122750.0,122730.0,0.14604039]
[1755119301063,0.001,122740.0,122730.0,0.14604039]
[1755119301548,0.001,122740.0,122730.0,0.44268039]
[1755119301771,0.001,122750.0,122730.0,0.44268039]
[1755119302492,0.01505744,122750.0,122730.0,0.44268039]
[1755119302717,0.003,122740.0,122730.0,0.29672039]
[1755119302931,0.0032,122740.0,122730.0,0.44316039]
[1755119303358,0.3432,122760.0,122730.0,0.44316039]
[1755119303574,0.3582457,122760.0,122740.0,0.00507364]
[1755119303798,0.03569472,122760.0,122750.0,0.1466]
[1755119304238,0.341,122750.0,122730.0,0.29672039]
[1755119304450,0.789219,122750.0,122740.0,0.1466]
[1755119304637,0.792419,122750.0,122740.0,0.1466]
[1755119304874,0.34641325,122750.0,122740.0,0.1466]
[1755119305121,0.78058655,122750.0,122740.0,0.1466]
[1755119305355,0.0192457,122750.0,122730.0,0.29672039]
[1755119305594,0.0192457,122750.0,122740.0,0.14656]
[1755119305811,0.453419,122750.0,122740.0,0.14656]